[Event "19th IPCA WCC 2019"]
[Site "Ruzomberok"]
[Date "2019.07.02"]
[Round "5.3"]
[White "Babula, Milan"]
[Black "Gedgafov, Chamal"]
[Result "1-0"]
[ECO "B06"]
[WhiteElo "2220"]
[BlackElo "2163"]
[Annotator "NA"]
[PlyCount "95"]
[EventDate "2019.06.28"]
[EventType "swiss"]
[EventCountry "SVK"]
[SourceTitle "playchess.com"]
[Source "ChessBase"]
[SourceQuality "1"]
[TimeControl "5400+30"]

1. e4 {[%emt 0:00:00]} g6 {[%emt 0:00:00]} 2. d4 {[%emt 0:00:00]} Bg7 {[%emt 0:00:00]} 3. c3 {[%emt 0:04:24]} d6 {[%emt 0:00:09]} 4. Bd3 {[%emt 0:02:19]} Nd7 {[%emt 0:00:42]} 5. Nf3 {[%emt 0:05:30]} b6 {[%emt 0:01:07]} 6. O-O {[%emt 0:01:14]} Bb7 {[%emt 0:04:15]} 7. Re1 {[%emt 0:01:21]} e6 {[%emt 0:00:56]} 8. a4 {[%emt 0:02:19]} a6 {[%emt 0:02:49]} 9. Nbd2 {[%emt 0:03:31]} Ne7 {[%emt 0:00:22]} 10. b4 {[%emt 0:16:23]} O-O {[%emt 0:01:34]} 11. Rb1 {[%emt 0:00:28]} h6 {[%emt 0:09:25]} 12. Ba3 {[%emt 0:04:16]} e5 {[%emt 0:03:39]} 13. Nc4 {[%emt 0:11:47]} exd4 {[%emt 0:05:43]} 14. cxd4 {[%emt 0:08:33]} d5 {[%emt 0:06:13]} 15. Ncd2 {[%emt 0:00:04]} dxe4 {[%emt 0:00:29]} 16. Nxe4 {[%emt 0:00:06]} Nd5 {[%emt 0:00:38]} 17. Qb3 {[%emt 0:03:08]} N5f6 {[%emt 0:06:49]} 18. b5 {[%emt 0:03:59]} Re8 {[%emt 0:00:20]} 19. Nxf6+ {[%emt 0:03:50]} Qxf6 {[%emt 0:04:36]} 20. Rxe8+ {[%emt 0:12:04]} Rxe8 {[%emt 0:00:09]} 21. bxa6 {[%emt 0:00:02]} Bxf3 {[%emt 0:08:37]} 22. gxf3 {[%emt 0:00:07]} Qf4 {[%emt 0:01:10]} 23. Qd5 {[%emt 0:10:54]} Bxd4 {[%emt 0:11:20]} 24. Qxd7 {[%emt 0:00:46]} Re5 {[%emt 0:00:32]} 25. Be7 {[%emt 0:02:23]} Bxf2+ {[%emt 0:07:42]} 26. Kg2 {[%emt 0:01:45]} Bd4 {[%emt 0:08:29]} 27. Qd8+ {[%emt 0:00:44]} Kh7 {[%emt 0:00:34]} 28. Rd1 {[%emt 0:01:19]} Qe3 {[%emt 0:01:09]} 29. Qxd4 {[%emt 0:00:14]} Qxd4 {[%emt 0:03:08]} 30. Bxg6+ {[%emt 0:00:03]} Kxg6 {[%emt 0:00:10]} 31. Rxd4 {[%emt 0:00:04]} Rxe7 {[%emt 0:00:12]} 32. a7 {[%emt 0:00:12]} Re8 {[%emt 0:00:15]} 33. Rd7 {[%emt 0:00:02]} Rc8 {[%emt 0:00:20]} 34. Rxc7 {[%emt 0:00:07]} Ra8 {[%emt 0:00:28]} 35. Kg3 {[%emt 0:00:14]} Kf6 {[%emt 0:01:14]} 36. Kf4 {[%emt 0:00:02]} Ke6 {[%emt 0:00:28]} 37. Rb7 {[%emt 0:00:02]} Kd5 38. Rxf7 {[%emt 0:01:46]} Kc5 {[%emt 0:01:26]} 39. Rb7 {[%emt 0:00:18]} Kc6 {[%emt 0:00:15]} 40. Rh7 {[%emt 0:02:34]} Kc5 {[%emt 0:00:11]} 41. h4 {[%emt 0:00:17]} Kb4 {[%emt 0:00:43]} 42. Rxh6 {[%emt 0:00:07]} Ka5 {[%emt 0:00:36]} 43. Rh7 {[%emt 0:00:15]} Kxa4 {[%emt 0:00:11]} 44. h5 {[%emt 0:00:07]} Ka5 {[%emt 0:02:08]} 45. h6 {[%emt 0:00:19]} Ka6 {[%emt 0:00:14]} 46. Rg7 {[%emt 0:00:12]} Rf8+ {[%emt 0:00:32]} 47. Kg5 {[%emt 0:00:26]} b5 {[%emt 0:00:10]} 48. h7 {[%emt 0:00:05]} 1-0

[Event "19th IPCA WCC 2019"]
[Site "Ruzomberok"]
[Date "2019.07.02"]
[Round "5.4"]
[White "Sovetov, Oleksandr"]
[Black "Nowak, Lukasz"]
[Result "1/2-1/2"]
[ECO "E32"]
[WhiteElo "2009"]
[BlackElo "2267"]
[Annotator "NA"]
[PlyCount "73"]
[EventDate "2019.06.28"]
[EventType "swiss"]
[EventCountry "SVK"]
[SourceTitle "playchess.com"]
[Source "ChessBase"]
[SourceQuality "1"]
[TimeControl "5400+30"]

1. d4 {[%emt 0:00:00]} Nf6 {[%emt 0:00:00]} 2. c4 {[%emt 0:00:00]} e6 {[%emt 0:00:00]} 3. Nc3 {[%emt 0:00:00]} Bb4 {[%emt 0:00:00]} 4. Qc2 {[%emt 0:00:13]} b6 {[%emt 0:00:24]} 5. e4 {[%emt 0:02:39]} c5 {[%emt 0:00:20]} 6. a3 {[%emt 0:04:19]} Bxc3+ {[%emt 0:00:40]} 7. bxc3 {[%emt 0:00:19]} Bb7 {[%emt 0:00:31]} 8. Bd3 {[%emt 0:01:41]} b5 {[%emt 0:02:21]} 9. f3 {[%emt 0:03:05]} bxc4 {[%emt 0:06:39]} 10. Bxc4 {[%emt 0:00:17]} O-O {[%emt 0:05:06]} 11. Bd3 {[%emt 0:08:43]} cxd4 {[%emt 0:04:42]} 12. cxd4 {[%emt 0:03:20]} Ba6 {[%emt 0:05:24]} 13. Ne2 {[%emt 0:04:38]} Nc6 {[%emt 0:03:47]} 14. Bd2 {[%emt 0:18:38]} Bxd3 {[%emt 0:07:45]} 15. Qxd3 {[%emt 0:00:15]} d5 {[%emt 0:05:02]} 16. O-O {[%emt 0:08:33]} e5 {[%emt 0:17:00]} 17. dxe5 {[%emt 0:11:54]} Nxe5 {[%emt 0:03:03]} 18. Qc3 {[%emt 0:15:10]} dxe4 {[%emt 0:00:26]} 19. Bg5 {[%emt 0:00:35]} Ned7 {[%emt 0:06:29]} 20. Rad1 {[%emt 0:06:27]} Qb6+ {[%emt 0:01:59]} 21. Kh1 {[%emt 0:03:06]} Rac8 {[%emt 0:02:33]} 22. Qb4 {[%emt 0:02:19]} exf3 {[%emt 0:01:57]} 23. Rxf3 {[%emt 0:01:22]} Rfe8 {[%emt 0:00:45]} 24. Ng3 {[%emt 0:01:11]} Qe6 {[%emt 0:11:09]} 25. h3 {[%emt 0:01:40]} Ne5 {[%emt 0:01:47]} 26. Rff1 {[%emt 0:02:02]} Nd5 {[%emt 0:08:44]} 27. Qd4 {[%emt 0:00:18]} Nb6 {[%emt 0:00:55]} 28. Rde1 {[%emt 0:00:40]} Qd5 {[%emt 0:00:43]} 29. Rd1 {[%emt 0:00:28]} Qxd4 {[%emt 0:00:19]} 30. Rxd4 {[%emt 0:00:02]} Rc3 {[%emt 0:01:09]} 31. Nf5 {[%emt 0:00:58]} Rxa3 {[%emt 0:01:11]} 32. Re4 f6 {[%emt 0:00:28]} 33. Nxg7 {[%emt 0:00:45]} Kxg7 {[%emt 0:02:00]} 34. Bxf6+ {[%emt 0:00:01]} Kg8 {[%emt 0:00:11]} 35. Bxe5 {[%emt 0:00:32]} Rg3 {[%emt 0:00:37]} 36. Bxg3 {[%emt 0:01:01]} Rxe4 {[%emt 0:00:07]} 37. Ra1 {[%emt 0:00:31]} 1/2-1/2

[Event "19th IPCA WCC 2019"]
[Site "Ruzomberok"]
[Date "2019.07.02"]
[Round "5.5"]
[White "Mukha, Nikolay"]
[Black "Obodchuk, Andrei"]
[Result "1-0"]
[ECO "D85"]
[WhiteElo "2159"]
[BlackElo "2316"]
[Annotator "NA"]
[PlyCount "131"]
[EventDate "2019.06.28"]
[EventType "swiss"]
[EventCountry "SVK"]
[SourceTitle "playchess.com"]
[Source "ChessBase"]
[SourceQuality "1"]
[TimeControl "5400+30"]

1. d4 {[%emt 0:00:00]} Nf6 {[%emt 0:00:00]} 2. c4 {[%emt 0:00:03]} g6 {[%emt 0:00:00]} 3. Nc3 {[%emt 0:00:09]} d5 {[%emt 0:00:00]} 4. cxd5 {[%emt 0:02:38]} Nxd5 {[%emt 0:00:00]} 5. e4 {[%emt 0:00:21]} Nxc3 {[%emt 0:00:00]} 6. bxc3 {[%emt 0:00:01]} Bg7 {[%emt 0:00:06]} 7. Nf3 {[%emt 0:00:18]} c5 {[%emt 0:00:06]} 8. Be3 {[%emt 0:00:33]} Qa5 {[%emt 0:00:15]} 9. Qd2 {[%emt 0:01:19]} O-O {[%emt 0:00:15]} 10. Rc1 {[%emt 0:06:41]} Rd8 {[%emt 0:00:24]} 11. d5 {[%emt 0:04:06]} e6 {[%emt 0:00:08]} 12. c4 {[%emt 0:02:52]} Qxd2+ {[%emt 0:00:14]} 13. Kxd2 {[%emt 0:08:40]} Na6 {[%emt 0:05:10]} 14. Bd3 {[%emt 0:00:28]} f5 {[%emt 0:14:32]} 15. Bg5 {[%emt 0:02:11]} Re8 {[%emt 0:02:48]} 16. exf5 {[%emt 0:06:19]} gxf5 {[%emt 0:00:51]} 17. Rhe1 {[%emt 0:01:45]} Bd7 {[%emt 0:04:52]} 18. Ne5 {[%emt 0:03:46]} Ba4 {[%emt 0:10:49]} 19. f4 {[%emt 0:03:15]} Nb4 {[%emt 0:14:45]} 20. d6 {[%emt 0:10:43]} Red8 {[%emt 0:05:22]} 21. Bxd8 {[%emt 0:01:53]} Rxd8 {[%emt 0:00:02]} 22. a3 {[%emt 0:03:16]} Nxd3 {[%emt 0:00:13]} 23. Kxd3 {[%emt 0:03:54]} Rxd6+ {[%emt 0:00:02]} 24. Ke3 {[%emt 0:01:12]} b6 {[%emt 0:07:40]} 25. g3 {[%emt 0:03:39]} Kf8 {[%emt 0:03:53]} 26. Re2 {[%emt 0:05:52]} Rd8 {[%emt 0:04:10]} 27. Rd2 {[%emt 0:01:01]} Rc8 {[%emt 0:00:09]} 28. Rc3 {[%emt 0:02:27]} Ke7 {[%emt 0:09:46]} 29. Rcd3 {[%emt 0:00:15]} Bxe5 {[%emt 0:01:52]} 30. fxe5 {[%emt 0:00:03]} Rg8 {[%emt 0:00:18]} 31. Rf2 {[%emt 0:01:37]} h5 {[%emt 0:00:23]} 32. Rf4 {[%emt 0:01:02]} Rc8 {[%emt 0:00:50]} 33. Rh4 {[%emt 0:00:34]} Be8 {[%emt 0:00:03]} 34. Rd6 {[%emt 0:00:56]} Rb8 {[%emt 0:00:51]} 35. Kd2 {[%emt 0:02:10]} Rb7 {[%emt 0:02:53]} 36. Kc3 {[%emt 0:00:09]} Rb8 {[%emt 0:00:12]} 37. Kb3 {[%emt 0:01:43]} Rc8 {[%emt 0:00:41]} 38. a4 {[%emt 0:01:43]} Rb8 {[%emt 0:00:15]} 39. Rf4 {[%emt 0:01:56]} Rc8 {[%emt 0:01:54]} 40. Rf2 {[%emt 0:00:43]} Rc7 {[%emt 0:00:23]} 41. Rfd2 {[%emt 0:00:06]} Rc8 {[%emt 0:00:06]} 42. Ka3 {[%emt 0:00:34]} Bc6 {[%emt 0:00:49]} 43. Kb3 {[%emt 0:01:08]} Be8 {[%emt 0:00:11]} 44. Ra2 {[%emt 0:00:17]} Bc6 {[%emt 0:00:34]} 45. Kc3 {[%emt 0:00:19]} Bd7 {[%emt 0:01:20]} 46. a5 {[%emt 0:00:57]} b5 {[%emt 0:01:18]} 47. cxb5 {[%emt 0:02:42]} Bxb5 {[%emt 0:00:01]} 48. Rb2 {[%emt 0:01:40]} Bc6 {[%emt 0:02:28]} 49. Rxc6 {[%emt 0:01:55]} Rxc6 {[%emt 0:00:02]} 50. Rb7+ {[%emt 0:00:01]} Ke8 {[%emt 0:00:02]} 51. Rxa7 {[%emt 0:00:54]} c4 {[%emt 0:00:01]} 52. Rb7 {[%emt 0:01:41]} Kd8 {[%emt 0:02:56]} 53. Rb6 {[%emt 0:00:40]} Rc5 {[%emt 0:00:46]} 54. a6 {[%emt 0:00:08]} Ra5 {[%emt 0:01:59]} 55. Rxe6 {[%emt 0:02:56]} Kd7 {[%emt 0:00:40]} 56. Rd6+ {[%emt 0:01:36]} Kc7 {[%emt 0:00:01]} 57. Kxc4 {[%emt 0:01:12]} Rxe5 {[%emt 0:00:10]} 58. Rh6 {[%emt 0:00:40]} f4 {[%emt 0:01:27]} 59. Kd4 {[%emt 0:01:19]} Rf5 {[%emt 0:01:56]} 60. a7 {[%emt 0:02:04]} Kb7 {[%emt 0:00:19]} 61. Ra6 {[%emt 0:00:26]} Ka8 {[%emt 0:00:28]} 62. Ke4 {[%emt 0:00:38]} Rb5 {[%emt 0:00:37]} 63. gxf4 {[%emt 0:00:57]} Rb2 {[%emt 0:00:04]} 64. h3 {[%emt 0:00:52]} Rb3 {[%emt 0:00:27]} 65. f5 {[%emt 0:00:37]} h4 {[%emt 0:00:22]} 66. f6 {[%emt 0:00:13]} 1-0

[Event "19th IPCA WCC 2019"]
[Site "Ruzomberok"]
[Date "2019.07.02"]
[Round "5.6"]
[White "Jurkiewicz, Krzysztof"]
[Black "Juvan, Jaka"]
[Result "0-1"]
[ECO "E01"]
[WhiteElo "2007"]
[BlackElo "2168"]
[Annotator "NA"]
[PlyCount "64"]
[EventDate "2019.06.28"]
[EventType "swiss"]
[EventCountry "SVK"]
[SourceTitle "playchess.com"]
[Source "ChessBase"]
[SourceQuality "1"]
[TimeControl "5400+30"]

1. d4 {[%emt 0:00:00]} Nf6 {[%emt 0:00:00]} 2. c4 {[%emt 0:00:00]} e6 {[%emt 0:00:00]} 3. g3 {[%emt 0:00:00]} d5 {[%emt 0:00:04]} 4. Bg2 {[%emt 0:00:00]} Bb4+ {[%emt 0:00:09]} 5. Nd2 {[%emt 0:00:40]} O-O {[%emt 0:00:25]} 6. Ngf3 {[%emt 0:00:14]} c6 {[%emt 0:01:09]} 7. O-O {[%emt 0:01:22]} b6 {[%emt 0:00:31]} 8. a3 {[%emt 0:02:32]} Be7 {[%emt 0:00:46]} 9. b3 {[%emt 0:01:24]} Nbd7 {[%emt 0:00:57]} 10. Bb2 {[%emt 0:00:12]} Ba6 {[%emt 0:00:24]} 11. Re1 {[%emt 0:01:19]} Rc8 {[%emt 0:13:51]} 12. Ne5 {[%emt 0:01:02]} Nxe5 {[%emt 0:01:03]} 13. dxe5 {[%emt 0:00:06]} Nd7 {[%emt 0:00:25]} 14. e4 {[%emt 0:01:11]} Nc5 {[%emt 0:01:55]} 15. exd5 {[%emt 0:18:57]} cxd5 {[%emt 0:00:24]} 16. Qc2 {[%emt 0:23:04]} dxc4 {[%emt 0:01:05]} 17. bxc4 {[%emt 0:01:36]} Qd3 {[%emt 0:03:20]} 18. Be4 {[%emt 0:02:46]} Qxc2 {[%emt 0:00:13]} 19. Bxc2 {[%emt 0:00:02]} Rfd8 {[%emt 0:00:10]} 20. Red1 {[%emt 0:02:01]} Nd3 {[%emt 0:05:23]} 21. Bc3 {[%emt 0:00:38]} Bxc4 {[%emt 0:00:22]} 22. Ne4 {[%emt 0:05:52]} Ba6 {[%emt 0:06:54]} 23. Rd2 {[%emt 0:07:29]} Nxe5 {[%emt 0:02:50]} 24. Rxd8+ {[%emt 0:00:45]} Bxd8 {[%emt 0:00:02]} 25. Rd1 {[%emt 0:04:18]} Bf6 {[%emt 0:18:41]} 26. Ba4 {[%emt 0:04:20]} Be2 {[%emt 0:03:51]} 27. Rc1 {[%emt 0:02:49]} Be7 {[%emt 0:04:17]} 28. f4 {[%emt 0:01:13]} Nd3 {[%emt 0:01:27]} 29. Rc2 {[%emt 0:00:53]} Bd1 {[%emt 0:00:09]} 30. Rd2 {[%emt 0:00:40]} Bxa4 {[%emt 0:00:18]} 31. Rxd3 {[%emt 0:00:01]} Bc2 {[%emt 0:02:14]} 32. Rd7 {[%emt 0:00:15]} Bf8 {[%emt 0:00:14]} 0-1

[Event "19th IPCA WCC 2019"]
[Site "Ruzomberok"]
[Date "2019.07.02"]
[Round "5.7"]
[White "Tsapalin, Sergey"]
[Black "Tebenkov, Vladislav"]
[Result "0-1"]
[ECO "E11"]
[WhiteElo "1935"]
[BlackElo "2096"]
[Annotator "NA"]
[PlyCount "46"]
[EventDate "2019.06.28"]
[EventType "swiss"]
[EventCountry "SVK"]
[SourceTitle "playchess.com"]
[Source "ChessBase"]
[SourceQuality "1"]
[TimeControl "5400+30"]

1. d4 {[%emt 0:00:00]} Nf6 {[%emt 0:00:00]} 2. c4 {[%emt 0:00:00]} e6 {[%emt 0:00:00]} 3. Nf3 {[%emt 0:00:00]} Bb4+ {[%emt 0:00:00]} 4. Bd2 {[%emt 0:00:05]} a5 {[%emt 0:00:00]} 5. a3 {[%emt 0:00:09]} Bxd2+ {[%emt 0:00:07]} 6. Nbxd2 {[%emt 0:00:17]} d6 {[%emt 0:00:52]} 7. e4 {[%emt 0:00:52]} O-O {[%emt 0:00:35]} 8. Bd3 {[%emt 0:00:11]} Nc6 {[%emt 0:05:52]} 9. O-O {[%emt 0:02:08]} e5 {[%emt 0:00:46]} 10. d5 {[%emt 0:02:08]} Ne7 {[%emt 0:00:55]} 11. b4 {[%emt 0:00:54]} Ng6 {[%emt 0:02:34]} 12. Re1 {[%emt 0:01:11]} Nf4 {[%emt 0:07:18]} 13. Bf1 {[%emt 0:00:37]} Ne8 {[%emt 0:02:43]} 14. Re3 {[%emt 0:18:12]} f5 {[%emt 0:01:59]} 15. Ne1 {[%emt 0:01:47]} Nf6 {[%emt 0:02:15]} 16. g3 {[%emt 0:00:52]} Ng6 {[%emt 0:02:05]} 17. Nd3 {[%emt 0:09:28]} f4 {[%emt 0:07:55]} 18. Re1 {[%emt 0:00:19]} h5 {[%emt 0:08:53]} 19. f3 {[%emt 0:02:35]} fxg3 {[%emt 0:03:18]} 20. hxg3 {[%emt 0:00:07]} h4 {[%emt 0:00:20]} 21. g4 {[%emt 0:00:11]} axb4 {[%emt 0:09:15]} 22. axb4 {[%emt 0:00:28]} Rxa1 {[%emt 0:00:37]} 23. Qxa1 {[%emt 0:00:02]} Nxg4 {[%emt 0:01:41]} 0-1

[Event "19th IPCA WCC 2019"]
[Site "Ruzomberok"]
[Date "2019.07.02"]
[Round "5.8"]
[White "Tersinsev, Andrey"]
[Black "Palin, Denis"]
[Result "1-0"]
[ECO "B15"]
[WhiteElo "2164"]
[BlackElo "2180"]
[Annotator "NA"]
[PlyCount "85"]
[EventDate "2019.06.28"]
[EventType "swiss"]
[EventCountry "SVK"]
[SourceTitle "playchess.com"]
[Source "ChessBase"]
[SourceQuality "1"]
[TimeControl "5400+30"]

1. e4 {[%emt 0:00:00]} c6 {[%emt 0:00:49]} 2. d4 {[%emt 0:01:59]} d5 {[%emt 0:00:32]} 3. Nc3 {[%emt 0:03:54]} g6 {[%emt 0:00:50]} 4. e5 {[%emt 0:01:01]} Bg7 {[%emt 0:00:12]} 5. f4 {[%emt 0:00:24]} Nh6 {[%emt 0:00:07]} 6. Be3 {[%emt 0:01:25]} f6 {[%emt 0:00:08]} 7. Nf3 {[%emt 0:01:17]} Ng4 {[%emt 0:04:03]} 8. Bg1 {[%emt 0:01:00]} Qb6 {[%emt 0:04:50]} 9. Na4 {[%emt 0:07:16]} Qc7 {[%emt 0:03:56]} 10. h3 {[%emt 0:02:17]} Nh6 {[%emt 0:00:18]} 11. Bd3 {[%emt 0:07:39]} O-O {[%emt 0:02:12]} 12. Bf2 {[%emt 0:00:37]} Nd7 {[%emt 0:03:07]} 13. O-O {[%emt 0:13:23]} b5 {[%emt 0:04:33]} 14. Nc3 {[%emt 0:00:31]} Nb6 {[%emt 0:00:39]} 15. a4 {[%emt 0:06:01]} b4 {[%emt 0:08:31]} 16. Nb1 {[%emt 0:03:10]} a5 {[%emt 0:18:19]} 17. Nbd2 {[%emt 0:00:27]} Be6 {[%emt 0:03:47]} 18. Qe2 {[%emt 0:04:02]} Rae8 {[%emt 0:02:21]} 19. Nb3 {[%emt 0:02:04]} Nd7 {[%emt 0:00:50]} 20. Rac1 {[%emt 0:01:38]} Nf7 {[%emt 0:06:34]} 21. g4 {[%emt 0:02:37]} f5 {[%emt 0:02:05]} 22. g5 {[%emt 0:03:00]} Rb8 {[%emt 0:05:49]} 23. Kg2 {[%emt 0:00:33]} Nd8 {[%emt 0:02:50]} 24. h4 {[%emt 0:01:57]} Nb7 {[%emt 0:02:37]} 25. Nc5 {[%emt 0:06:23]} Nbxc5 {[%emt 0:01:54]} 26. dxc5 {[%emt 0:00:07]} Kf7 {[%emt 0:04:45]} 27. h5 {[%emt 0:00:34]} Rh8 {[%emt 0:00:49]} 28. Rh1 {[%emt 0:04:24]} Rbd8 {[%emt 0:04:40]} 29. Bd4 {[%emt 0:00:23]} Qa7 {[%emt 0:02:37]} 30. Nh4 {[%emt 0:02:03]} Nb8 {[%emt 0:02:04]} 31. h6 {[%emt 0:03:19]} Bf8 {[%emt 0:00:05]} 32. Bxf5 {[%emt 0:02:54]} Qd7 {[%emt 0:04:19]} 33. Bxe6+ {[%emt 0:00:24]} Qxe6 {[%emt 0:00:06]} 34. f5 {[%emt 0:00:09]} gxf5 {[%emt 0:00:03]} 35. Qh5+ {[%emt 0:01:21]} Kg8 {[%emt 0:00:04]} 36. Rcf1 {[%emt 0:01:08]} Qd7 {[%emt 0:01:47]} 37. g6 {[%emt 0:01:01]} e6 {[%emt 0:00:19]} 38. g7 {[%emt 0:00:35]} Bxg7 {[%emt 0:00:15]} 39. hxg7 {[%emt 0:00:06]} Qxg7+ {[%emt 0:00:35]} 40. Kh2 {[%emt 0:00:23]} Kf8 {[%emt 0:01:29]} 41. Rhg1 {[%emt 0:00:50]} Qf7 {[%emt 0:00:22]} 42. Qh6+ Ke8 {[%emt 0:00:08]} 43. Rg7 {[%emt 0:01:35]} 1-0

[Event "19th IPCA WCC 2019"]
[Site "Ruzomberok"]
[Date "2019.07.02"]
[Round "5.9"]
[White "Lipilin, Ilia"]
[Black "Kovacevic, Krsto"]
[Result "1-0"]
[ECO "E20"]
[WhiteElo "2084"]
[BlackElo "2049"]
[Annotator "NA"]
[PlyCount "53"]
[EventDate "2019.06.28"]
[EventType "swiss"]
[EventCountry "SVK"]
[SourceTitle "playchess.com"]
[Source "ChessBase"]
[SourceQuality "1"]
[TimeControl "5400+30"]

1. d4 {[%emt 0:00:00]} Nf6 {[%emt 0:00:00]} 2. c4 {[%emt 0:00:00]} e6 {[%emt 0:00:00]} 3. Nc3 {[%emt 0:00:00]} Bb4 {[%emt 0:00:02]} 4. f3 {[%emt 0:00:00]} c5 {[%emt 0:00:30]} 5. d5 {[%emt 0:00:00]} d6 {[%emt 0:00:14]} 6. e4 {[%emt 0:00:00]} O-O {[%emt 0:00:11]} 7. Bd3 {[%emt 0:00:25]} b5 {[%emt 0:00:26]} 8. Nge2 {[%emt 0:01:03]} a6 {[%emt 0:05:03]} 9. O-O {[%emt 0:00:37]} exd5 {[%emt 0:00:32]} 10. Nxd5 {[%emt 0:01:33]} Nxd5 {[%emt 0:00:23]} 11. exd5 {[%emt 0:00:09]} bxc4 {[%emt 0:00:39]} 12. Bxc4 {[%emt 0:00:06]} Nd7 {[%emt 0:04:50]} 13. Qc2 {[%emt 0:08:42]} Ne5 {[%emt 0:06:28]} 14. Ng3 {[%emt 0:01:51]} Qh4 {[%emt 0:04:34]} 15. Be2 {[%emt 0:00:29]} f5 {[%emt 0:09:25]} 16. f4 {[%emt 0:10:30]} Ng4 {[%emt 0:00:21]} 17. Bxg4 {[%emt 0:00:10]} Qxg4 {[%emt 0:00:08]} 18. a3 {[%emt 0:00:15]} Ba5 {[%emt 0:01:28]} 19. Qa4 {[%emt 0:00:57]} Bb6 {[%emt 0:01:44]} 20. Qc6 {[%emt 0:01:08]} Rb8 {[%emt 0:00:52]} 21. Qxd6 {[%emt 0:00:16]} c4+ {[%emt 0:00:45]} 22. Kh1 {[%emt 0:00:10]} Ba7 {[%emt 0:24:20]} 23. Be3 {[%emt 0:01:54]} Rf6 {[%emt 0:19:18]} 24. Qe5 {[%emt 0:00:50]} Bxe3 {[%emt 0:00:21]} 25. Qxb8 {[%emt 0:00:48]} Rh6 {[%emt 0:00:49]} 26. Qxc8+ {[%emt 0:00:10]} Kf7 {[%emt 0:00:04]} 27. Qxf5+ {[%emt 0:00:18]} 1-0

[Event "19th IPCA WCC 2019"]
[Site "Ruzomberok"]
[Date "2019.07.02"]
[Round "5.10"]
[White "Alekseev, Mikhail"]
[Black "Kozicz, Andrzej"]
[Result "1-0"]
[ECO "B20"]
[WhiteElo "1869"]
[BlackElo "1979"]
[Annotator "NA"]
[PlyCount "149"]
[EventDate "2019.06.28"]
[EventType "swiss"]
[EventCountry "SVK"]
[SourceTitle "playchess.com"]
[Source "ChessBase"]
[SourceQuality "1"]
[TimeControl "5400+30"]

1. e4 {[%emt 0:00:00]} c5 {[%emt 0:00:00]} 2. c4 {[%emt 0:00:00]} d6 {[%emt 0:00:00]} 3. g3 {[%emt 0:00:07]} e6 {[%emt 0:00:00]} 4. Bg2 {[%emt 0:00:28]} Nc6 {[%emt 0:00:00]} 5. Ne2 {[%emt 0:01:08]} Nf6 {[%emt 0:00:35]} 6. Nbc3 {[%emt 0:00:26]} Be7 {[%emt 0:00:13]} 7. O-O {[%emt 0:00:58]} Nd4 {[%emt 0:07:42]} 8. d3 {[%emt 0:02:44]} a6 {[%emt 0:00:29]} 9. Be3 {[%emt 0:01:25]} e5 {[%emt 0:00:19]} 10. a4 {[%emt 0:04:26]} Bd7 {[%emt 0:00:39]} 11. Rb1 {[%emt 0:04:19]} b5 {[%emt 0:02:13]} 12. axb5 {[%emt 0:00:59]} axb5 {[%emt 0:02:47]} 13. Bxd4 {[%emt 0:00:33]} cxd4 {[%emt 0:02:18]} 14. Nxb5 {[%emt 0:00:39]} Bxb5 {[%emt 0:00:29]} 15. cxb5 {[%emt 0:00:02]} Qb6 {[%emt 0:00:29]} 16. Qb3 {[%emt 0:13:35]} O-O {[%emt 0:01:49]} 17. Rfc1 {[%emt 0:05:38]} Ra5 {[%emt 0:05:10]} 18. Rc4 {[%emt 0:01:51]} Rxb5 {[%emt 0:09:21]} 19. Qc2 {[%emt 0:00:24]} Rb8 {[%emt 0:02:46]} 20. b4 {[%emt 0:01:39]} d5 {[%emt 0:02:22]} 21. exd5 {[%emt 0:04:53]} Nxd5 {[%emt 0:01:23]} 22. Rc8+ {[%emt 0:07:16]} Rxc8 {[%emt 0:03:08]} 23. Qxc8+ {[%emt 0:00:03]} Bf8 {[%emt 0:00:02]} 24. Bxd5 {[%emt 0:00:37]} Rxd5 {[%emt 0:00:13]} 25. Nc1 {[%emt 0:01:16]} Rc5 {[%emt 0:03:42]} 26. Qg4 {[%emt 0:01:05]} Rc3 {[%emt 0:01:27]} 27. Qd1 {[%emt 0:07:28]} g6 {[%emt 0:07:29]} 28. b5 {[%emt 0:01:09]} Bh6 {[%emt 0:04:06]} 29. Ne2 {[%emt 0:02:12]} Rc5 {[%emt 0:00:58]} 30. Qa4 {[%emt 0:03:06]} Bd2 {[%emt 0:02:52]} 31. Rb2 {[%emt 0:08:14]} Ba5 {[%emt 0:00:34]} 32. Qb3 {[%emt 0:02:30]} Kg7 {[%emt 0:00:34]} 33. Rb1 {[%emt 0:01:28]} h5 {[%emt 0:00:22]} 34. h4 {[%emt 0:01:21]} Bd2 {[%emt 0:02:37]} 35. Qb2 {[%emt 0:02:04]} Ba5 {[%emt 0:00:56]} 36. Qb3 {[%emt 0:00:18]} f6 {[%emt 0:01:36]} 37. Rb2 {[%emt 0:02:00]} Be1 {[%emt 0:06:26]} 38. Rb1 {[%emt 0:02:16]} Bd2 {[%emt 0:00:49]} 39. Rb2 {[%emt 0:00:13]} Ba5 {[%emt 0:00:51]} 40. Rb1 {[%emt 0:00:28]} Qb7 {[%emt 0:01:10]} 41. Qa3 {[%emt 0:05:03]} Qb6 {[%emt 0:03:00]} 42. Rc1 {[%emt 0:01:15]} Rc7 {[%emt 0:09:17]} 43. Rc6 {[%emt 0:02:42]} Rxc6 {[%emt 0:05:31]} 44. Qe7+ {[%emt 0:00:26]} Kh6 {[%emt 0:00:21]} 45. Qf8+ {[%emt 0:00:24]} Kh7 {[%emt 0:00:20]} 46. Qf7+ {[%emt 0:00:12]} Kh6 {[%emt 0:01:15]} 47. bxc6 {[%emt 0:00:57]} Qxc6 {[%emt 0:00:18]} 48. Qg8 {[%emt 0:00:15]} Qc7 {[%emt 0:01:35]} 49. Qh8+ {[%emt 0:00:13]} Qh7 {[%emt 0:00:03]} 50. Qxf6 {[%emt 0:00:13]} Qg7 {[%emt 0:00:01]} 51. Qxg7+ {[%emt 0:01:09]} Kxg7 {[%emt 0:00:02]} 52. Kg2 {[%emt 0:00:59]} Kf6 {[%emt 0:01:20]} 53. Kf3 {[%emt 0:00:32]} Kf5 {[%emt 0:00:10]} 54. Nc1 {[%emt 0:01:03]} Bb6 {[%emt 0:00:11]} 55. Nb3 {[%emt 0:00:17]} Ba7 {[%emt 0:00:40]} 56. Nd2 {[%emt 0:00:18]} Bc5 {[%emt 0:00:07]} 57. Ne4 {[%emt 0:00:18]} Be7 {[%emt 0:00:02]} 58. Kg2 {[%emt 0:00:53]} Ke6 {[%emt 0:00:34]} 59. Kh3 {[%emt 0:00:28]} Kf5 {[%emt 0:00:06]} 60. f3 {[%emt 0:00:31]} g5 {[%emt 0:00:51]} 61. g4+ {[%emt 0:04:14]} Kf4 {[%emt 0:02:36]} 62. gxh5 {[%emt 0:02:09]} gxh4 {[%emt 0:00:58]} 63. h6 {[%emt 0:02:09]} Bf8 {[%emt 0:00:29]} 64. h7 Bg7 {[%emt 0:00:12]} 65. Kxh4 {[%emt 0:01:38]} Kf5 {[%emt 0:02:37]} 66. Kh5 {[%emt 0:00:35]} Bh8 {[%emt 0:00:37]} 67. Ng5 {[%emt 0:00:20]} Kf6 {[%emt 0:00:09]} 68. Nh3 {[%emt 0:01:02]} Bg7 {[%emt 0:00:20]} 69. Nf2 {[%emt 0:00:40]} Bh8 {[%emt 0:00:30]} 70. Ne4+ {[%emt 0:00:17]} Kf7 {[%emt 0:00:19]} 71. Kg5 {[%emt 0:00:17]} Kg7 {[%emt 0:00:37]} 72. Nf6 {[%emt 0:00:11]} Kf7 {[%emt 0:00:11]} 73. Ng4 {[%emt 0:00:07]} Ke6 {[%emt 0:04:24]} 74. Kg6 {[%emt 0:00:29]} e4 {[%emt 0:03:09]} 75. fxe4 {[%emt 0:00:16]} 1-0